[Event "Titled Tuesday Blitz March 07 Late 2023"]
[White "Zampronha, Wladimir Camilo"]
[Black "Golubka, Petro"]
[WhiteFideId "2103087"]
[BlackFideId "14114224"]
[WhiteElo "2176"]
[BlackElo "2391"]
[Result "0-1"]
[Round "07"]
[TimeControl "180+2"]
[Date "2023.03.07"]
[WhiteClock "0:00:09"]
[BlackClock "0:00:48"]

1. e4 {[%clk 0:03:00]}  c5 {[%clk 0:02:54]} 2. Nf3 {[%clk 0:03:01]}  Nc6 {[%clk 0:02:54]} 3. d4 {[%clk 0:03:02]}  cxd4 {[%clk 0:02:54]} 4. Nxd4 {[%clk 0:03:02]}  e6 {[%clk 0:02:55]} 5. Nc3 {[%clk 0:03:01]}  Nf6 {[%clk 0:02:53]} 6. Nxc6 {[%clk 0:03:01]}  dxc6 {[%clk 0:02:53]} 7. e5 {[%clk 0:03:02]}  Qxd1+ {[%clk 0:02:52]} 8. Nxd1 {[%clk 0:02:59]}  Ng4 {[%clk 0:02:53]} 9. f4 {[%clk 0:02:57]}  f6 {[%clk 0:02:54]} 10. h3 {[%clk 0:02:57]}  Nh6 {[%clk 0:02:53]} 11. exf6 {[%clk 0:02:56]}  gxf6 {[%clk 0:02:54]} 12. g4 {[%clk 0:02:55]}  Bc5 {[%clk 0:02:54]} 13. Be3 {[%clk 0:02:54]}  Bxe3 {[%clk 0:02:53]} 14. Nxe3 {[%clk 0:02:55]}  Bd7 {[%clk 0:02:53]} 15. Bd3 {[%clk 0:02:54]}  Ke7 {[%clk 0:02:53]} 16. Kf2 {[%clk 0:02:53]}  Nf7 {[%clk 0:02:54]} 17. Rae1 {[%clk 0:02:45]}  Rae8 {[%clk 0:02:53]} 18. Re2 {[%clk 0:02:33]}  b6 {[%clk 0:02:51]} 19. Rhe1 {[%clk 0:02:25]}  Kd8 {[%clk 0:02:47]} 20. Nc4 {[%clk 0:02:21]}  Kc7 {[%clk 0:02:46]} 21. Nd2 {[%clk 0:02:11]}  Nd6 {[%clk 0:02:36]} 22. Nc4 {[%clk 0:02:07]}  Nf7 {[%clk 0:02:32]} 23. Nd2 {[%clk 0:02:06]}  Nd8 {[%clk 0:02:30]} 24. Nf3 {[%clk 0:01:59]}  Ref8 {[%clk 0:02:31]} 25. Nd4 {[%clk 0:01:58]}  h5 {[%clk 0:02:26]} 26. Bc4 {[%clk 0:01:55]}  e5 {[%clk 0:02:26]} 27. Nf5 {[%clk 0:01:42]}  hxg4 {[%clk 0:02:23]} 28. hxg4 {[%clk 0:01:41]}  Rh2+ {[%clk 0:02:24]} 29. Kg3 {[%clk 0:01:41]}  Rxe2 {[%clk 0:02:23]} 30. Rxe2 {[%clk 0:01:42]}  b5 {[%clk 0:02:15]} 31. Bb3 {[%clk 0:01:40]}  c5 {[%clk 0:02:15]} 32. Bd5 {[%clk 0:01:33]}  Bc6 {[%clk 0:02:09]} 33. Ne7 {[%clk 0:01:22]}  exf4+ {[%clk 0:01:55]} 34. Kxf4 {[%clk 0:01:20]}  Bd7 {[%clk 0:01:54]} 35. Rh2 {[%clk 0:01:13]}  Ne6+ {[%clk 0:01:50]} 36. Bxe6 {[%clk 0:01:12]}  Bxe6 {[%clk 0:01:51]} 37. Rh7 {[%clk 0:01:09]}  Kb6 {[%clk 0:01:46]} 38. a3 {[%clk 0:01:08]}  a5 {[%clk 0:01:46]} 39. Nf5 {[%clk 0:00:56]}  a4 {[%clk 0:01:42]} 40. Re7 {[%clk 0:00:56]}  Ba2 {[%clk 0:01:39]} 41. Ne3 {[%clk 0:00:51]}  Kc6 {[%clk 0:01:37]} 42. Kf5 {[%clk 0:00:46]}  Kd6 {[%clk 0:01:36]} 43. Ra7 {[%clk 0:00:45]}  Be6+ {[%clk 0:01:35]} 44. Kf4 {[%clk 0:00:44]}  Rc8 {[%clk 0:01:31]} 45. Rb7 {[%clk 0:00:40]}  Kc6 {[%clk 0:01:30]} 46. Re7 {[%clk 0:00:39]}  Kd6 {[%clk 0:01:30]} 47. Rb7 {[%clk 0:00:39]}  Kc6 {[%clk 0:01:22]} 48. Re7 {[%clk 0:00:38]}  Bd7 {[%clk 0:01:22]} 49. Nd5 {[%clk 0:00:30]}  Rf8 {[%clk 0:01:16]} 50. Ne3 {[%clk 0:00:21]}  Kd6 {[%clk 0:01:13]} 51. Rg7 {[%clk 0:00:19]}  Be6 {[%clk 0:01:11]} 52. Nf5+ {[%clk 0:00:19]}  Kd5 {[%clk 0:01:07]} 53. Rb7 {[%clk 0:00:16]}  Kc6 {[%clk 0:01:05]} 54. Re7 {[%clk 0:00:16]}  Ba2 {[%clk 0:01:02]} 55. Ne3 {[%clk 0:00:14]}  Rd8 {[%clk 0:00:59]} 56. Kf5 {[%clk 0:00:13]}  Rd6 {[%clk 0:00:59]} 57. Kf4 {[%clk 0:00:10]}  Rd4+ {[%clk 0:00:55]} 58. Kf3 {[%clk 0:00:10]}  b4 {[%clk 0:00:52]} 59. Re8 {[%clk 0:00:09]}  bxa3 {[%clk 0:00:51]} 60. bxa3 {[%clk 0:00:10]}  Bd5+ {[%clk 0:00:49]} 61. Nxd5 {[%clk 0:00:09]}  Kxd5 {[%clk 0:00:48]} 62. Rd8+ {[%clk 0:00:08]}  Ke5 {[%clk 0:00:48]} 63. Rd6 {[%clk 0:00:09]}  Rxd6 {[%clk 0:00:48]} 0-1


[Site "https://www.chess.com"]

[Event "Titled Tuesday Blitz March 07 Late 2023"]
[White "Kozin, Yuri"]
[Black "Rytenko, Vsevolod"]
[WhiteFideId "4129920"]
[BlackFideId "14133040"]
[WhiteElo "2484"]
[BlackElo "2262"]
[Result "0-1"]
[Round "07"]
[TimeControl "180+2"]
[Date "2023.03.07"]
[WhiteClock "0:00:04"]
[BlackClock "0:00:05"]

1. e4 {[%clk 0:03:00]}  e5 {[%clk 0:02:59]} 2. Nf3 {[%clk 0:02:59]}  d6 {[%clk 0:03:00]} 3. d4 {[%clk 0:02:59]}  Bg4 {[%clk 0:03:00]} 4. dxe5 {[%clk 0:02:57]}  Nc6 {[%clk 0:03:00]} 5. exd6 {[%clk 0:02:56]}  Bxd6 {[%clk 0:03:01]} 6. Be2 {[%clk 0:02:57]}  Qe7 {[%clk 0:03:01]} 7. Nfd2 {[%clk 0:02:56]}  h5 {[%clk 0:02:54]} 8. Bxg4 {[%clk 0:02:44]}  hxg4 {[%clk 0:02:48]} 9. Qxg4 {[%clk 0:02:42]}  Nf6 {[%clk 0:02:48]} 10. Qe2 {[%clk 0:02:31]}  Nd4 {[%clk 0:02:48]} 11. Qd3 {[%clk 0:02:29]}  O-O-O {[%clk 0:02:45]} 12. Qxd4 {[%clk 0:02:16]}  Bc5 {[%clk 0:01:47]} 13. Qc4 {[%clk 0:01:36]}  Ng4 {[%clk 0:01:37]} 14. Qe2 {[%clk 0:01:09]}  Nxf2 {[%clk 0:01:07]} 15. Rf1 {[%clk 0:01:00]}  Rxh2 {[%clk 0:01:07]} 16. Rxf2 {[%clk 0:00:31]}  Bxf2+ {[%clk 0:01:05]} 17. Qxf2 {[%clk 0:00:20]}  Rh1+ {[%clk 0:01:05]} 18. Nf1 {[%clk 0:00:19]}  Qxe4+ {[%clk 0:01:04]} 19. Be3 {[%clk 0:00:20]}  Rxf1+ {[%clk 0:00:20]} 20. Kxf1 {[%clk 0:00:19]}  Rd1+ {[%clk 0:00:19]} 21. Ke2 {[%clk 0:00:19]}  Qxc2+ {[%clk 0:00:20]} 22. Kf3 {[%clk 0:00:14]}  Qf5+ {[%clk 0:00:13]} 23. Ke2 {[%clk 0:00:11]}  Qd3+ {[%clk 0:00:12]} 24. Kf3 {[%clk 0:00:11]}  Rxb1 {[%clk 0:00:13]} 25. Rxb1 {[%clk 0:00:10]}  Qxb1 {[%clk 0:00:14]} 26. Qd2 {[%clk 0:00:10]}  Qxa2 {[%clk 0:00:13]} 27. Bd4 {[%clk 0:00:09]}  Qd5+ {[%clk 0:00:14]} 28. Kf2 {[%clk 0:00:08]}  c5 {[%clk 0:00:14]} 29. Bc3 {[%clk 0:00:09]}  Qf5+ {[%clk 0:00:10]} 30. Kg1 {[%clk 0:00:08]}  f6 {[%clk 0:00:10]} 31. Qe2 {[%clk 0:00:07]}  Kd7 {[%clk 0:00:09]} 32. Qb5+ {[%clk 0:00:06]}  Kc7 {[%clk 0:00:10]} 33. Qe8 {[%clk 0:00:06]}  Qd7 {[%clk 0:00:08]} 34. Qf8 {[%clk 0:00:06]}  b6 {[%clk 0:00:08]} 35. Qa8 {[%clk 0:00:05]}  Kd6 {[%clk 0:00:08]} 36. Qf3 {[%clk 0:00:04]}  Qc6 {[%clk 0:00:07]} 37. Qg3+ {[%clk 0:00:03]}  Kd5 {[%clk 0:00:05]} 38. Qxg7 {[%clk 0:00:04]}  f5 {[%clk 0:00:05]} 39. Qe5+ {[%clk 0:00:04]}  Kc4 {[%clk 0:00:05]} 40. Qxf5 {[%clk 0:00:05]}  Kb3 {[%clk 0:00:06]} 41. Qd3 {[%clk 0:00:04]}  c4 {[%clk 0:00:06]} 42. Qd1+ {[%clk 0:00:05]}  Ka2 {[%clk 0:00:06]} 43. g4 {[%clk 0:00:04]}  Qe4 {[%clk 0:00:06]} 44. Qd4 {[%clk 0:00:04]}  Qe2 {[%clk 0:00:05]} 0-1


[Site "https://www.chess.com"]

[Event "Titled Tuesday Blitz March 07 Late 2023"]
[White "Sai Han Thiha"]
[Black "Sreyas Payyappat"]
[WhiteFideId "13012290"]
[BlackFideId "46674969"]
[WhiteElo "1954"]
[BlackElo "2083"]
[Result "0-1"]
[Round "07"]
[TimeControl "180+2"]
[Date "2023.03.07"]
[WhiteClock "0:00:03"]
[BlackClock "0:00:06"]

1. d4 {[%clk 0:02:57]}  Nf6 {[%clk 0:02:59]} 2. c4 {[%clk 0:02:57]}  c5 {[%clk 0:02:59]} 3. d5 {[%clk 0:02:57]}  e6 {[%clk 0:03:00]} 4. Nc3 {[%clk 0:02:57]}  exd5 {[%clk 0:03:01]} 5. cxd5 {[%clk 0:02:57]}  d6 {[%clk 0:03:01]} 6. Nf3 {[%clk 0:02:58]}  g6 {[%clk 0:03:01]} 7. Nd2 {[%clk 0:02:59]}  Bg7 {[%clk 0:03:02]} 8. e4 {[%clk 0:02:59]}  O-O {[%clk 0:03:02]} 9. Be2 {[%clk 0:03:00]}  a6 {[%clk 0:03:01]} 10. a4 {[%clk 0:03:00]}  Nbd7 {[%clk 0:03:02]} 11. O-O {[%clk 0:03:01]}  Re8 {[%clk 0:03:02]} 12. h3 {[%clk 0:02:59]}  Rb8 {[%clk 0:03:01]} 13. Re1 {[%clk 0:02:58]}  h6 {[%clk 0:02:53]} 14. Qc2 {[%clk 0:02:39]}  g5 {[%clk 0:02:52]} 15. Nc4 {[%clk 0:02:27]}  Nb6 {[%clk 0:02:17]} 16. Nxb6 {[%clk 0:02:17]}  Qxb6 {[%clk 0:02:18]} 17. f4 {[%clk 0:02:18]}  c4+ {[%clk 0:02:04]} 18. Kh1 {[%clk 0:02:10]}  Qf2 {[%clk 0:01:28]} 19. Rf1 {[%clk 0:02:10]}  Qh4 {[%clk 0:01:28]} 20. Bxc4 {[%clk 0:00:54]}  g4 {[%clk 0:01:05]} 21. Qf2 {[%clk 0:00:37]}  Qh5 {[%clk 0:00:52]} 22. e5 {[%clk 0:00:30]}  gxh3 {[%clk 0:00:43]} 23. exf6 {[%clk 0:00:23]}  hxg2+ {[%clk 0:00:40]} 24. Kxg2 {[%clk 0:00:24]}  Bh3+ {[%clk 0:00:26]} 25. Kg1 {[%clk 0:00:22]}  Bxf1 {[%clk 0:00:22]} 26. Bxf1 {[%clk 0:00:21]}  Bxf6 {[%clk 0:00:22]} 27. Bd2 {[%clk 0:00:16]}  Kh8 {[%clk 0:00:21]} 28. Bg2 {[%clk 0:00:15]}  Rg8 {[%clk 0:00:20]} 29. Ne4 {[%clk 0:00:13]}  Bxb2 {[%clk 0:00:16]} 30. Rb1 {[%clk 0:00:09]}  Rxg2+ {[%clk 0:00:13]} 31. Kxg2 {[%clk 0:00:07]}  Rg8+ {[%clk 0:00:10]} 32. Ng3 {[%clk 0:00:07]}  Qxd5+ {[%clk 0:00:10]} 33. Kg1 {[%clk 0:00:06]}  Bd4 {[%clk 0:00:10]} 34. Be3 {[%clk 0:00:07]}  Qe4 {[%clk 0:00:02]} 35. Re1 {[%clk 0:00:05]}  Bxe3 {[%clk 0:00:01]} 36. Rxe3 {[%clk 0:00:06]}  Qb1+ {[%clk 0:00:01]} 37. Kg2 {[%clk 0:00:06]}  Qg6 {[%clk 0:00:02]} 38. Qb2+ {[%clk 0:00:06]}  Kh7 {[%clk 0:00:02]} 39. Rf3 {[%clk 0:00:04]}  h5 {[%clk 0:00:02]} 40. f5 {[%clk 0:00:03]}  Qg5 {[%clk 0:00:03]} 41. Qxb7 {[%clk 0:00:03]}  h4 {[%clk 0:00:03]} 42. Qxf7+ {[%clk 0:00:03]}  Rg7 {[%clk 0:00:03]} 43. Qf8 {[%clk 0:00:02]}  hxg3 {[%clk 0:00:04]} 44. f6 {[%clk 0:00:03]}  Qd2+ {[%clk 0:00:04]} 45. Kf1 {[%clk 0:00:01]}  g2+ {[%clk 0:00:04]} 46. Kg1 {[%clk 0:00:02]}  Qd1+ {[%clk 0:00:04]} 47. Kh2 {[%clk 0:00:02]}  g1=Q+ {[%clk 0:00:05]} 48. Kh3 {[%clk 0:00:03]}  Qh1# {[%clk 0:00:06]} 0-1


[Site "https://www.chess.com"]

[Event "Titled Tuesday Blitz March 07 Late 2023"]
[White "Przybylski, Wojciech"]
[Black "Di Berardino, Diego Rafael"]
[WhiteFideId "1117599"]
[BlackFideId "2105446"]
[WhiteElo "2222"]
[BlackElo "2432"]
[Result "1-0"]
[Round "07"]
[TimeControl "180+2"]
[Date "2023.03.07"]
[WhiteClock "0:00:26"]
[BlackClock "0:00:07"]

1. d4 {[%clk 0:03:00]}  Nf6 {[%clk 0:02:59]} 2. Nc3 {[%clk 0:02:58]}  c5 {[%clk 0:02:56]} 3. Nf3 {[%clk 0:02:56]}  cxd4 {[%clk 0:02:53]} 4. Nxd4 {[%clk 0:02:56]}  Nc6 {[%clk 0:02:53]} 5. e4 {[%clk 0:02:55]}  e6 {[%clk 0:02:51]} 6. Ndb5 {[%clk 0:02:54]}  Bb4 {[%clk 0:02:49]} 7. a3 {[%clk 0:02:55]}  Bxc3+ {[%clk 0:02:49]} 8. Nxc3 {[%clk 0:02:56]}  d5 {[%clk 0:02:49]} 9. exd5 {[%clk 0:02:56]}  Nxd5 {[%clk 0:02:49]} 10. Bd3 {[%clk 0:02:57]}  Nxc3 {[%clk 0:02:47]} 11. bxc3 {[%clk 0:02:57]}  O-O {[%clk 0:02:45]} 12. O-O {[%clk 0:02:57]}  e5 {[%clk 0:02:44]} 13. Re1 {[%clk 0:02:54]}  Re8 {[%clk 0:02:43]} 14. Qh5 {[%clk 0:02:47]}  g6 {[%clk 0:02:38]} 15. Qh6 {[%clk 0:02:46]}  Qf6 {[%clk 0:02:29]} 16. Bg5 {[%clk 0:02:45]}  Qg7 {[%clk 0:02:29]} 17. Qh4 {[%clk 0:02:45]}  f5 {[%clk 0:02:11]} 18. Bf6 {[%clk 0:02:22]}  Qf7 {[%clk 0:02:11]} 19. Bb5 {[%clk 0:02:21]}  Bd7 {[%clk 0:01:44]} 20. Rad1 {[%clk 0:02:19]}  e4 {[%clk 0:01:10]} 21. Rd6 {[%clk 0:02:02]}  Re6 {[%clk 0:01:04]} 22. Bc4 {[%clk 0:01:59]}  Rae8 {[%clk 0:00:53]} 23. Red1 {[%clk 0:01:27]}  Bc8 {[%clk 0:00:53]} 24. h3 {[%clk 0:01:20]}  h5 {[%clk 0:00:40]} 25. Qg5 {[%clk 0:01:14]}  Kh7 {[%clk 0:00:40]} 26. Bxe6 {[%clk 0:01:10]}  Bxe6 {[%clk 0:00:38]} 27. Bd4 {[%clk 0:01:07]}  f4 {[%clk 0:00:31]} 28. Re1 {[%clk 0:00:46]}  e3 {[%clk 0:00:24]} 29. fxe3 {[%clk 0:00:44]}  f3 {[%clk 0:00:25]} 30. Rf1 {[%clk 0:00:42]}  Bf5 {[%clk 0:00:14]} 31. Rxf3 {[%clk 0:00:39]}  Qe7 {[%clk 0:00:07]} 32. Rxf5 {[%clk 0:00:28]}  Nxd4 {[%clk 0:00:07]} 33. Qxg6+ {[%clk 0:00:26]} 1-0


[Site "https://www.chess.com"]

[Event "Titled Tuesday Blitz March 07 Late 2023"]
[White "Lewtak, Damian"]
[Black "Koutlas, Nikolaos"]
[WhiteFideId "1141724"]
[BlackFideId "25827138"]
[WhiteElo "2302"]
[BlackElo "2215"]
[Result "1-0"]
[Round "07"]
[TimeControl "180+2"]
[Date "2023.03.07"]
[WhiteClock "0:00:06"]
[BlackClock "0:00:02"]

1. e4 {[%clk 0:03:00]}  c5 {[%clk 0:02:59]} 2. Nf3 {[%clk 0:03:00]}  Nc6 {[%clk 0:02:55]} 3. Bb5 {[%clk 0:03:00]}  g6 {[%clk 0:02:52]} 4. Bxc6 {[%clk 0:03:00]}  bxc6 {[%clk 0:02:52]} 5. O-O {[%clk 0:02:59]}  Bg7 {[%clk 0:02:50]} 6. d3 {[%clk 0:02:59]}  Nf6 {[%clk 0:02:50]} 7. Nc3 {[%clk 0:02:59]}  O-O {[%clk 0:02:50]} 8. Re1 {[%clk 0:02:59]}  d6 {[%clk 0:02:51]} 9. e5 {[%clk 0:02:59]}  Nd5 {[%clk 0:02:50]} 10. Nxd5 {[%clk 0:02:58]}  cxd5 {[%clk 0:02:50]} 11. exd6 {[%clk 0:02:56]}  Qxd6 {[%clk 0:02:49]} 12. c3 {[%clk 0:02:55]}  Rb8 {[%clk 0:02:48]} 13. d4 {[%clk 0:02:55]}  cxd4 {[%clk 0:02:46]} 14. Nxd4 {[%clk 0:02:53]}  e5 {[%clk 0:02:39]} 15. Nb3 {[%clk 0:02:53]}  Be6 {[%clk 0:02:34]} 16. Be3 {[%clk 0:02:51]}  d4 {[%clk 0:02:25]} 17. cxd4 {[%clk 0:02:51]}  Bxb3 {[%clk 0:01:57]} 18. axb3 {[%clk 0:02:52]}  exd4 {[%clk 0:01:57]} 19. Bg5 {[%clk 0:02:49]}  Qd5 {[%clk 0:01:53]} 20. Be7 {[%clk 0:02:40]}  Rfe8 {[%clk 0:01:53]} 21. Rxa7 {[%clk 0:02:40]}  Rxb3 {[%clk 0:01:53]} 22. Ba3 {[%clk 0:02:33]}  Rxe1+ {[%clk 0:01:44]} 23. Qxe1 {[%clk 0:02:34]}  Rb8 {[%clk 0:01:40]} 24. Ra5 {[%clk 0:02:16]}  Qd7 {[%clk 0:01:20]} 25. g3 {[%clk 0:02:03]}  d3 {[%clk 0:01:17]} 26. Qd2 {[%clk 0:01:51]}  h5 {[%clk 0:01:17]} 27. Ra6 {[%clk 0:01:47]}  Be5 {[%clk 0:01:01]} 28. Ra5 {[%clk 0:01:36]}  Bd4 {[%clk 0:00:52]} 29. Ra6 {[%clk 0:01:22]}  Be5 {[%clk 0:00:33]} 30. Ra5 {[%clk 0:01:16]}  Re8 {[%clk 0:00:33]} 31. Bb4 {[%clk 0:00:44]}  Bd4 {[%clk 0:00:27]} 32. Bc3 {[%clk 0:00:23]}  Re2 {[%clk 0:00:21]} 33. Ra8+ {[%clk 0:00:08]}  Kh7 {[%clk 0:00:17]} 34. Qxd3 {[%clk 0:00:07]}  Bxf2+ {[%clk 0:00:15]} 35. Kf1 {[%clk 0:00:07]}  Qh3+ {[%clk 0:00:02]} 36. Kxe2 {[%clk 0:00:07]}  Qg2 {[%clk 0:00:02]} 37. Rh8# {[%clk 0:00:06]} 1-0


[Site "https://www.chess.com"]

[Event "Titled Tuesday Blitz March 07 Late 2023"]
[White "Vlassov, Nikolai"]
[Black "Elissalt Cardenas, Hector"]
[WhiteFideId "4103360"]
[BlackFideId "3500632"]
[WhiteElo "2324"]
[BlackElo "2202"]
[Result "1/2-1/2"]
[Round "07"]
[TimeControl "180+2"]
[Date "2023.03.07"]
[WhiteClock "0:00:11"]
[BlackClock "0:00:15"]

1. e4 {[%clk 0:03:00]}  d6 {[%clk 0:02:46]} 2. f4 {[%clk 0:03:00]}  c5 {[%clk 0:02:43]} 3. Nf3 {[%clk 0:03:00]}  Nc6 {[%clk 0:02:44]} 4. Nc3 {[%clk 0:02:59]}  Bg4 {[%clk 0:02:41]} 5. Bb5 {[%clk 0:02:57]}  Rc8 {[%clk 0:02:36]} 6. d4 {[%clk 0:02:45]}  cxd4 {[%clk 0:02:35]} 7. Qxd4 {[%clk 0:02:43]}  Bxf3 {[%clk 0:02:29]} 8. gxf3 {[%clk 0:02:42]}  a6 {[%clk 0:02:19]} 9. Bxc6+ {[%clk 0:02:41]}  Rxc6 {[%clk 0:02:18]} 10. Be3 {[%clk 0:02:40]}  e6 {[%clk 0:02:16]} 11. O-O-O {[%clk 0:02:38]}  Qc7 {[%clk 0:02:16]} 12. Rhg1 {[%clk 0:02:34]}  Nf6 {[%clk 0:02:12]} 13. Kb1 {[%clk 0:02:18]}  Rc4 {[%clk 0:02:11]} 14. Qa7 {[%clk 0:02:14]}  g6 {[%clk 0:02:08]} 15. f5 {[%clk 0:02:06]}  Bg7 {[%clk 0:02:06]} 16. fxe6 {[%clk 0:02:01]}  fxe6 {[%clk 0:02:03]} 17. e5 {[%clk 0:01:43]}  dxe5 {[%clk 0:01:40]} 18. Bb6 {[%clk 0:01:39]}  Qc6 {[%clk 0:01:27]} 19. Rd8+ {[%clk 0:01:09]}  Kf7 {[%clk 0:01:25]} 20. Rxh8 {[%clk 0:01:07]}  Bxh8 {[%clk 0:01:25]} 21. Be3 {[%clk 0:00:54]}  Bg7 {[%clk 0:00:44]} 22. Bc1 {[%clk 0:00:26]}  Bf8 {[%clk 0:00:36]} 23. Re1 {[%clk 0:00:21]}  Bc5 {[%clk 0:00:34]} 24. Qb8 {[%clk 0:00:20]}  Bd4 {[%clk 0:00:34]} 25. Ne4 {[%clk 0:00:19]}  Nxe4 {[%clk 0:00:31]} 26. fxe4 {[%clk 0:00:19]}  Rxc2 {[%clk 0:00:30]} 27. Qh8 {[%clk 0:00:15]}  Rf2 {[%clk 0:00:23]} 28. Qxh7+ {[%clk 0:00:15]}  Kf6 {[%clk 0:00:21]} 29. Qh8+ {[%clk 0:00:12]}  Kf7 {[%clk 0:00:20]} 30. Qh7+ {[%clk 0:00:11]}  Kf6 {[%clk 0:00:14]} 31. Qh8+ {[%clk 0:00:11]}  Kf7 {[%clk 0:00:15]} 32. Qh7+ {[%clk 0:00:11]} 1/2-1/2


[Site "https://www.chess.com"]

[Event "Titled Tuesday Blitz March 07 Late 2023"]
[White "Marczuk, Dominik"]
[Black "Melikyan, Gnel"]
[WhiteFideId "1111264"]
[BlackFideId "54109990"]
[WhiteElo "2174"]
[BlackElo "2138"]
[Result "0-1"]
[Round "07"]
[TimeControl "180+2"]
[Date "2023.03.07"]
[WhiteClock "0:00:03"]
[BlackClock "0:00:17"]

1. e4 {[%clk 0:03:00]}  d6 {[%clk 0:02:56]} 2. d4 {[%clk 0:03:00]}  Nf6 {[%clk 0:02:56]} 3. Nc3 {[%clk 0:03:01]}  e5 {[%clk 0:02:57]} 4. Nf3 {[%clk 0:02:58]}  Nc6 {[%clk 0:02:57]} 5. Bb5 {[%clk 0:02:41]}  Bd7 {[%clk 0:02:56]} 6. dxe5 {[%clk 0:02:40]}  Nxe5 {[%clk 0:02:56]} 7. Bxd7+ {[%clk 0:02:40]}  Qxd7 {[%clk 0:02:56]} 8. O-O {[%clk 0:02:40]}  O-O-O {[%clk 0:02:56]} 9. Bf4 {[%clk 0:02:16]}  Nxf3+ {[%clk 0:02:52]} 10. Qxf3 {[%clk 0:02:15]}  Qg4 {[%clk 0:02:52]} 11. Qxg4+ {[%clk 0:02:01]}  Nxg4 {[%clk 0:02:52]} 12. Bg3 {[%clk 0:02:02]}  Re8 {[%clk 0:02:48]} 13. h3 {[%clk 0:02:01]}  Nf6 {[%clk 0:02:47]} 14. f3 {[%clk 0:01:59]}  g6 {[%clk 0:02:47]} 15. Rad1 {[%clk 0:01:51]}  Bg7 {[%clk 0:02:46]} 16. Nb5 {[%clk 0:01:44]}  a6 {[%clk 0:02:38]} 17. Nd4 {[%clk 0:01:41]}  d5 {[%clk 0:02:24]} 18. e5 {[%clk 0:01:32]}  Nh5 {[%clk 0:02:23]} 19. Bh2 {[%clk 0:01:23]}  Bxe5 {[%clk 0:02:22]} 20. f4 {[%clk 0:01:22]}  Bxd4+ {[%clk 0:02:17]} 21. Rxd4 {[%clk 0:01:21]}  c6 {[%clk 0:02:15]} 22. c4 {[%clk 0:01:21]}  dxc4 {[%clk 0:02:14]} 23. Rxc4 {[%clk 0:01:21]}  Re2 {[%clk 0:02:14]} 24. Rf2 {[%clk 0:01:21]}  Rhe8 {[%clk 0:02:12]} 25. Rc2 {[%clk 0:01:20]}  Rxc2 {[%clk 0:02:09]} 26. Rxc2 {[%clk 0:01:20]}  Nf6 {[%clk 0:02:08]} 27. Kf2 {[%clk 0:01:16]}  Nd5 {[%clk 0:02:03]} 28. Rd2 {[%clk 0:01:06]}  Kd7 {[%clk 0:02:02]} 29. Kf3 {[%clk 0:01:01]}  Re1 {[%clk 0:01:37]} 30. Kg4 {[%clk 0:00:35]}  h6 {[%clk 0:01:32]} 31. Bg3 {[%clk 0:00:29]}  Rf1 {[%clk 0:01:19]} 32. Bf2 {[%clk 0:00:25]}  b5 {[%clk 0:01:07]} 33. Kf3 {[%clk 0:00:25]}  a5 {[%clk 0:01:05]} 34. g4 {[%clk 0:00:26]}  Rh1 {[%clk 0:01:03]} 35. Kg2 {[%clk 0:00:25]}  Ra1 {[%clk 0:01:04]} 36. a3 {[%clk 0:00:25]}  f5 {[%clk 0:01:03]} 37. Kf3 {[%clk 0:00:23]}  Rb1 {[%clk 0:01:00]} 38. g5 {[%clk 0:00:20]}  h5 {[%clk 0:00:58]} 39. Bd4 {[%clk 0:00:20]}  Rf1+ {[%clk 0:00:56]} 40. Bf2 {[%clk 0:00:18]}  Kc7 {[%clk 0:00:56]} 41. Re2 {[%clk 0:00:16]}  Kd7 {[%clk 0:00:56]} 42. Rd2 {[%clk 0:00:16]}  Rh1 {[%clk 0:00:56]} 43. Kg2 {[%clk 0:00:15]}  Rc1 {[%clk 0:00:56]} 44. Kf3 {[%clk 0:00:16]}  Rc4 {[%clk 0:00:57]} 45. Bd4 {[%clk 0:00:15]}  c5 {[%clk 0:00:54]} 46. Be5 {[%clk 0:00:16]}  Ke6 {[%clk 0:00:54]} 47. Re2 {[%clk 0:00:14]}  Kd7 {[%clk 0:00:51]} 48. Rd2 {[%clk 0:00:14]}  Kc6 {[%clk 0:00:52]} 49. Re2 {[%clk 0:00:14]}  b4 {[%clk 0:00:51]} 50. axb4 {[%clk 0:00:12]}  cxb4 {[%clk 0:00:51]} 51. Bb8 {[%clk 0:00:10]}  a4 {[%clk 0:00:51]} 52. Re6+ {[%clk 0:00:10]}  Kb7 {[%clk 0:00:51]} 53. Be5 {[%clk 0:00:10]}  Rc6 {[%clk 0:00:45]} 54. Re8 {[%clk 0:00:09]}  a3 {[%clk 0:00:44]} 55. bxa3 {[%clk 0:00:09]}  bxa3 {[%clk 0:00:45]} 56. Rd8 {[%clk 0:00:10]}  Nc3 {[%clk 0:00:39]} 57. Rd3 {[%clk 0:00:09]}  Nb5 {[%clk 0:00:28]} 58. Ke3 {[%clk 0:00:09]}  Ka6 {[%clk 0:00:27]} 59. Rd8 {[%clk 0:00:08]}  Ka5 {[%clk 0:00:27]} 60. Kd3 {[%clk 0:00:06]}  Kb4 {[%clk 0:00:26]} 61. Ra8 {[%clk 0:00:04]}  Rc1 {[%clk 0:00:23]} 62. Ra6 {[%clk 0:00:03]}  Rh1 {[%clk 0:00:22]} 63. Rxg6 {[%clk 0:00:02]}  Rxh3+ {[%clk 0:00:22]} 64. Kd2 {[%clk 0:00:02]}  a2 {[%clk 0:00:20]} 65. Ra6 {[%clk 0:00:03]}  Kb3 {[%clk 0:00:19]} 66. g6 {[%clk 0:00:03]}  Rg3 {[%clk 0:00:19]} 67. g7 {[%clk 0:00:03]}  h4 {[%clk 0:00:16]} 68. Ke2 {[%clk 0:00:04]}  h3 {[%clk 0:00:17]} 69. Kf2 {[%clk 0:00:04]}  Rg2+ {[%clk 0:00:17]} 70. Kf3 {[%clk 0:00:04]}  Rg4 {[%clk 0:00:17]} 71. Rh6 {[%clk 0:00:03]}  Nc3 {[%clk 0:00:17]} 0-1


[Site "https://www.chess.com"]